fUST/lending_fUST_20250102
["ID","MTS","AMOUNT","RATE_DAILY","PERIOD"]
[347383220,1735749042933,-500.0,0.00019178,2]
[347383221,1735749042945,-500.0,0.00019178,2]
[347383222,1735749042954,-500.0,0.00019178,2]
[347383223,1735749042963,-225.85997549,0.00019178,2]
[347383224,1735749042973,-531.1,0.00019178,2]
[347383225,1735749042982,-500.0,0.00019178,2]
[347383226,1735749042991,-500.0,0.00019178,2]
[347383227,1735749043000,-500.0,0.00019178,2]
[347383228,1735749043009,-500.0,0.00019178,2]
[347383229,1735749043019,-500.0,0.00019178,2]
[347383230,1735749043028,-500.0,0.00019178,2]
[347383231,1735749043038,-500.0,0.00019178,2]
[347383232,1735749043047,-500.0,0.00019178,2]
[347383233,1735749043056,-500.0,0.00019178,2]
[347383234,1735749043068,-500.88397465,0.00019178,2]
[347383235,1735749043078,-500.0,0.00019178,2]
[347383236,1735749043088,-496.37974095,0.00019178,2]
[347383237,1735749043097,-1657.94,0.00019178,2]
[347383239,1735749043107,-500.0,0.00019178,2]
[347383240,1735749043116,-500.0,0.00019178,2]
[347383241,1735749043125,-501.90084833,0.00019178,2]
[347383242,1735749043136,-500.0,0.00019178,2]
[347383244,1735749043147,-500.0,0.00019178,2]
[347383246,1735749043156,-500.0,0.00019178,2]
[347383248,1735749043165,-500.8406361,0.00019178,2]
[347383250,1735749043174,-500.0,0.00019178,2]
[347383252,1735749043184,-500.0,0.00019178,2]
[347383254,1735749043193,-500.0,0.00019178,2]
[347383255,1735749043204,-500.0,0.00019178,2]
[347383257,1735749043213,-500.0,0.00019178,2]
[347383259,1735749043222,-690.04,0.00019178,2]
[347383261,1735749043231,-500.0,0.00019178,2]
[347383263,1735749043241,-500.0,0.00019178,2]
[347383265,1735749043250,-500.0,0.00019178,2]
[347383267,1735749043260,-500.0,0.00019178,2]
[347383268,1735749043269,-645.23040515,0.00019178,2]
[347383269,1735749043279,-500.95652555,0.00019178,2]
[347383270,1735749043288,-501.90261125,0.00019178,2]
[347383271,1735749043298,-500.0,0.00019178,2]
[347383273,1735749043307,-500.0,0.00019178,2]
[347383275,1735749043316,-500.43843458,0.00019178,2]
[347383276,1735749043326,-500.0,0.00019178,2]
[347383278,1735749043335,-815.44,0.00019178,2]
[347383280,1735749043345,-500.0,0.00019178,2]
[347383282,1735749043356,-500.0,0.00019178,2]
[347383283,1735749043365,-500.0,0.00019178,2]
[347383285,1735749043375,-500.0,0.00019178,2]
[347383287,1735749043384,-1409.06,0.00019178,2]
[347383289,1735749043394,-500.42297399,0.00019178,2]
[347383292,1735749043404,-502.95489675,0.00019178,2]
[347383294,1735749043414,-500.0,0.00019178,2]
[347383296,1735749043423,-500.0,0.00019178,2]
[347383298,1735749043432,-500.0,0.00019178,2]
[347383300,1735749043442,-501.20344896,0.00019178,2]
[347383302,1735749043451,-975.72,0.00019178,2]
[347383303,1735749043461,-500.0800814,0.00019178,2]
[347383306,1735749043470,-500.0,0.00019178,2]
[347383308,1735749043480,-692.19,0.00019178,2]
[347383309,1735749043489,-505.93695909,0.00019178,2]
[347383311,1735749043498,-500.0,0.00019178,2]
[347383314,1735749043508,-500.0,0.00019178,2]
[347383316,1735749043517,-500.0,0.00019178,2]
[347383317,1735749043526,-184.96,0.00019178,2]
[347383319,1735749043535,-500.98345046,0.00019178,2]
[347383322,1735749043545,-500.0,0.00019178,2]
[347383323,1735749043554,-229.83172467,0.00019178,2]
[347383326,1735749043564,-500.0,0.00019178,2]
[347383327,1735749043574,-500.0,0.00019178,2]
[347383329,1735749043583,-500.94245322,0.00019178,2]
[347383331,1735749043592,-1574.79,0.00019178,2]
[347383333,1735749043602,-500.24294351,0.00019178,2]
[347383335,1735749043612,-643.53979108,0.00019178,2]
[347383337,1735749043621,-549.6,0.00019178,2]
[347383340,1735749043631,-500.0,0.00019178,2]
[347383341,1735749043642,-501.19331026,0.00019178,2]
[347383343,1735749043652,-1940.91,0.00019178,2]
[347383345,1735749043662,-500.0,0.00019178,2]
[347383347,1735749043672,-500.0,0.00019178,2]
[347383349,1735749043681,-500.0,0.00019178,2]
[347383351,1735749043691,-500.0,0.00019178,2]
[347383353,1735749043700,-500.0,0.00019178,2]
[347383355,1735749043710,-500.93117297,0.00019178,2]
[347383357,1735749043719,-500.0,0.00019178,2]
[347383359,1735749043729,-500.4765848,0.00019178,2]
[347383361,1735749043738,-500.0,0.00019178,2]
[347383363,1735749043747,-500.0,0.00019178,2]
[347383365,1735749043757,-500.0,0.00019178,2]
[347383367,1735749043766,-500.0,0.00019178,2]
[347383369,1735749043775,-500.0,0.00019178,2]
[347383371,1735749043785,-500.0,0.00019178,2]
[347383373,1735749043795,-1162.32,0.00019178,2]
[347383375,1735749043804,-500.0,0.00019178,2]
[347383377,1735749043814,-500.0,0.00019178,2]
[347383379,1735749043824,-500.0,0.00019178,2]
[347383381,1735749043833,-500.0,0.00019178,2]
[347383383,1735749043842,-1040.41,0.00019178,2]
[347383385,1735749043851,-500.0,0.00019178,2]
[347383387,1735749043861,-1040.41,0.00019178,2]
[347383389,1735749043870,-1040.41,0.00019178,2]
[347383391,1735749043880,-1040.41,0.00019178,2]
[347383393,1735749043891,-1040.41,0.00019178,2]
[347383395,1735749043901,-1040.41,0.00019178,2]
[347383397,1735749043910,-1040.41,0.00019178,2]
[347383399,1735749043919,-1040.41,0.00019178,2]
[347383401,1735749043929,-1040.41,0.00019178,2]
[347383403,1735749043939,-1040.41,0.00019178,2]
[347383405,1735749043948,-1040.41,0.00019178,2]
[347383407,1735749043958,-1040.41,0.00019178,2]
[347383409,1735749043967,-255.87189111,0.00019178,2]
[347383411,1735749043976,-1040.41,0.00019178,2]
[347383413,1735749043985,-1040.41,0.00019178,2]
[347383415,1735749043995,-1040.41,0.00019178,2]
[347383417,1735749044005,-1040.41,0.00019178,2]
[347383419,1735749044014,-500.0,0.00019178,2]
[347383421,1735749044023,-1040.41,0.00019178,2]
[347383423,1735749044032,-1040.41,0.00019178,2]
[347383425,1735749044041,-2207.09,0.00019178,2]
[347383427,1735749044051,-505.78,0.00019178,2]
[347383429,1735749044061,-500.0,0.00019178,2]
[347383431,1735749044073,-500.0,0.00019178,2]
[347383433,1735749044082,-500.0,0.00019178,2]
[347383435,1735749044092,-501.64212445,0.00019178,2]
[347383437,1735749044102,-500.0,0.00019178,2]
[347383439,1735749044111,-500.0,0.00019178,2]
[347383441,1735749044120,-2297.22,0.00019178,2]
[347383443,1735749044129,-500.0,0.00019178,2]
[347383445,1735749044138,-500.0,0.00019178,2]
[347383446,1735749044150,-500.0,0.00019178,2]
[347383448,1735749044159,-500.0,0.00019178,2]
[347383450,1735749044170,-595.10147996,0.00019178,2]
[347383452,1735749044179,-1961.72,0.00019178,2]
[347383454,1735749044189,-500.0,0.00019178,2]
[347383468,1735749044292,-500.0,0.00019178,2]
[347383470,1735749044317,-500.0,0.00019178,2]
[347383472,1735749044327,-500.0,0.00019178,2]
[347383474,1735749044337,-500.0,0.00019178,2]
[347383476,1735749044346,-500.0,0.00019178,2]
[347383478,1735749044355,-500.0,0.00019178,2]
[347383480,1735749044365,-500.0,0.00019178,2]
[347383482,1735749044374,-219.97871555,0.00019178,2]
[347383484,1735749044384,-500.0,0.00019178,2]
[347383486,1735749044395,-1325.41,0.00019178,2]
[347383488,1735749044404,-777.3,0.00019178,2]
[347383490,1735749044414,-500.0,0.00019178,2]
[347383492,1735749044423,-1066.28,0.00019178,2]
[347383494,1735749044432,-500.0,0.00019178,2]
[347383496,1735749044441,-500.0,0.00019178,2]
[347383498,1735749044451,-1104.69,0.00019178,2]
[347383500,1735749044460,-500.0,0.00019178,2]
[347383502,1735749044469,-1094.34,0.00019178,2]
[347383504,1735749044478,-500.0,0.00019178,2]
[347383506,1735749044487,-500.0,0.00019178,2]
[347383508,1735749044496,-1098.4,0.00019178,2]
[347383510,1735749044505,-500.0,0.00019178,2]
[347383511,1735749044514,-1113.25,0.00019178,2]
[347383513,1735749044524,-500.0,0.00019178,2]
[347383515,1735749044533,-500.0,0.00019178,2]
[347383518,1735749044543,-500.0,0.00019178,2]
[347383520,1735749044552,-500.0,0.00019178,2]
[347383521,1735749044561,-500.0,0.00019178,2]
[347383524,1735749044571,-1275.9,0.00019178,2]
[347383525,1735749044580,-500.0,0.00019178,2]
[347383528,1735749044590,-867.09,0.00019178,2]
[347383530,1735749044600,-500.0,0.00019178,2]
[347383532,1735749044610,-500.0,0.00019178,2]
[347383534,1735749044619,-500.0,0.00019178,2]
[347383535,1735749044628,-500.0,0.00019178,2]
[347383538,1735749044637,-500.0,0.00019178,2]
[347383539,1735749044650,-500.0,0.00019178,2]
[347383541,1735749044660,-500.0,0.00019178,2]
[347383543,1735749044671,-500.0,0.00019178,2]
[347383545,1735749044681,-500.0,0.00019178,2]
[347383547,1735749044692,-500.0,0.00019178,2]
[347383549,1735749044702,-646.45033835,0.00019178,2]
[347383551,1735749044713,-1321.28,0.00019178,2]
[347383553,1735749044723,-500.0,0.00019178,2]
[347383555,1735749044733,-500.0,0.00019178,2]
[347383558,1735749044743,-506.54598854,0.00019178,2]
[347383560,1735749044753,-500.0,0.00019178,2]
[347383562,1735749044763,-500.0,0.00019178,2]
[347383563,1735749044772,-500.0,0.00019178,2]
[347383565,1735749044782,-639.30303308,0.00019178,2]
[347383567,1735749044791,-500.0,0.00019178,2]
[347383569,1735749044801,-3646.17,0.00019178,2]
[347383571,1735749044810,-1095.35,0.00019178,2]
[347383573,1735749044820,-500.12494472,0.00019178,2]
[347383575,1735749044830,-500.0,0.00019178,2]
[347383577,1735749044839,-500.0,0.00019178,2]
[347383579,1735749044849,-500.0,0.00019178,2]
[347383582,1735749044860,-735.66,0.00019178,2]
[347383583,1735749044870,-735.66,0.00019178,2]
[347383585,1735749044879,-735.66,0.00019178,2]
[347383587,1735749044888,-500.0,0.00019178,2]
[347383589,1735749044900,-735.66,0.00019178,2]
[347383591,1735749044910,-500.0,0.00019178,2]
[347383593,1735749044920,-735.66,0.00019178,2]
[347383595,1735749044930,-735.66,0.00019178,2]
[347383597,1735749044939,-735.66,0.00019178,2]
[347383599,1735749044949,-500.0,0.00019178,2]
[347383601,1735749044959,-500.0,0.00019178,2]
[347383603,1735749044968,-735.66,0.00019178,2]
[347383605,1735749044978,-735.66,0.00019178,2]
[347383607,1735749044987,-735.66,0.00019178,2]
[347383609,1735749044997,-735.66,0.00019178,2]
[347383612,1735749045007,-500.0,0.00019178,2]
[347383613,1735749045016,-735.66,0.00019178,2]
[347383616,1735749045026,-735.66,0.00019178,2]
[347383618,1735749045036,-1177.23,0.00019178,2]
[347383620,1735749045046,-500.24496468,0.00019178,2]
[347383622,1735749045055,-735.66,0.00019178,2]
[347383624,1735749045068,-500.0,0.00019178,2]
[347383626,1735749045078,-735.66,0.00019178,2]
[347383628,1735749045087,-500.0,0.00019178,2]
[347383630,1735749045096,-735.66,0.00019178,2]
[347383632,1735749045107,-735.66,0.00019178,2]
[347383633,1735749045116,-735.66,0.00019178,2]
[347383636,1735749045126,-500.0,0.00019178,2]
[347383638,1735749045135,-500.0,0.00019178,2]
[347383639,1735749045148,-735.66,0.00019178,2]
[347383642,1735749045158,-621.68,0.00019178,2]
[347383644,1735749045169,-735.66,0.00019178,2]
[347383645,1735749045178,-735.66,0.00019178,2]
[347383647,1735749045187,-507.48052875,0.00019178,2]
[347383649,1735749045197,-735.66,0.00019178,2]
[347383651,1735749045207,-735.66,0.00019178,2]
[347383653,1735749045216,-1581.78,0.00019178,2]
[347383655,1735749045226,-735.6939166,0.00019178,2]
[347383658,1735749045235,-502.30198259,0.00019178,2]
[347383659,1735749045245,-500.0,0.00019178,2]
[347383661,1735749045254,-500.0,0.00019178,2]
[347383663,1735749045263,-5739.57,0.00019178,2]
[347383665,1735749045273,-1095.77,0.00019178,2]
[347383667,1735749045282,-500.0,0.00019178,2]
[347383669,1735749045291,-500.0,0.00019178,2]
[347383671,1735749045299,-500.0,0.00019178,2]
[347383673,1735749045309,-500.0,0.00019178,2]
[347383675,1735749045318,-500.0,0.00019178,2]
[347383677,1735749045328,-500.0,0.00019178,2]
[347383679,1735749045337,-500.0,0.00019178,2]
[347383681,1735749045347,-1059.86,0.00019178,2]
[347383683,1735749045357,-919.54,0.00019178,2]
[347383685,1735749045367,-500.0,0.00019178,2]
[347383687,1735749045376,-970.02,0.00019178,2]
[347383689,1735749045385,-2007.87,0.00019178,2]
[347383691,1735749045396,-611.77,0.00019178,2]
[347383693,1735749045405,-535.62,0.00019178,2]
[347383695,1735749045415,-4015.33175351,0.00019178,2]
[347383769,1735749046196,-2589.27824649,0.00019178,2]
[347383771,1735749046207,-558.55601231,0.00019178,2]
[347383786,1735749046404,-400.0,0.00019178,2]
[347383787,1735749046419,-431.23398769,0.00019178,2]
[347383788,1735749046429,-446.45421904,0.00019178,2]
[347383789,1735749046558,-654.32,0.00019178,2]
[347383790,1735749046568,-405.0316675,0.00019178,2]
[347383791,1735749046579,-502.20093038,0.00019178,2]
[347383792,1735749046589,-500.0,0.00019178,2]
[347383793,1735749046599,-500.0,0.00019178,2]
[347383794,1735749046609,-500.0,0.00019178,2]
[347383795,1735749046619,-500.65827239,0.00019178,2]
[347383796,1735749046629,-296.92099677,0.00019178,2]
[347383800,1735749047014,-2304.92900323,0.00019178,2]
[347383801,1735749047024,-500.0,0.00019178,2]
[347383803,1735749047035,-500.0,0.00019178,2]
[347383805,1735749047045,-500.0,0.00019178,2]
[347383807,1735749047054,-500.0,0.00019178,2]
[347383809,1735749047069,-578.95,0.00019178,2]
[347383811,1735749047079,-500.0,0.00019178,2]
[347383812,1735749047088,-2117.18,0.00019178,2]
[347383814,1735749047098,-500.0,0.00019178,2]
[347383816,1735749047108,-500.0,0.00019178,2]
[347383818,1735749047117,-500.0,0.00019178,2]
[347383820,1735749047127,-500.0,0.00019178,2]
[347383822,1735749047138,-500.0,0.00019178,2]
[347383824,1735749047151,-500.0,0.00019178,2]
[347383825,1735749047160,-47836.54,0.00019178,2]
[347383827,1735749047169,-455.81687072,0.00019178,2]
[347383828,1735749047179,-500.0,0.00019178,2]
[347383829,1735749047189,-500.0,0.00019178,2]
[347383830,1735749047198,-996.06,0.00019178,2]
[347383831,1735749047208,-500.0,0.00019178,2]
[347383832,1735749047217,-1345.24,0.00019178,2]
[347383833,1735749047227,-500.0,0.00019178,2]
[347383834,1735749047238,-530.06576934,0.00019178,2]
[347383835,1735749047248,-500.0,0.00019178,2]
[347383836,1735749047257,-500.0,0.00019178,2]
[347383837,1735749047266,-539.9,0.00019178,2]
[347383838,1735749047276,-500.0,0.00019178,2]
[347383839,1735749047285,-4566.03,0.00019178,2]
[347383840,1735749047295,-500.0,0.00019178,2]
[347383841,1735749047305,-500.0,0.00019178,2]
[347383842,1735749047315,-500.0,0.00019178,2]
[347383843,1735749047324,-939.0,0.00019178,2]
[347383844,1735749047333,-525.97916596,0.00019178,2]
[347383845,1735749047343,-1637.59,0.00019178,2]
[347383846,1735749047352,-500.0,0.00019178,2]
[347383847,1735749047362,-392.80170329,0.00019178,2]
[347383848,1735749047371,-500.0,0.00019178,2]
[347383849,1735749047380,-500.0,0.00019178,2]
[347383851,1735749047390,-500.0,0.00019178,2]
[347383852,1735749047403,-500.0,0.00019178,2]
[347383853,1735749047412,-500.0,0.00019178,2]
[347383854,1735749047421,-1826.26,0.00019178,2]
[347383855,1735749047431,-500.0,0.00019178,2]
[347383856,1735749047440,-1094.0,0.00019178,2]
[347383857,1735749047449,-500.0,0.00019178,2]
[347383858,1735749047459,-934.72,0.00019178,2]
[347383859,1735749047469,-500.0,0.00019178,2]
[347383860,1735749047478,-500.0,0.00019178,2]
[347383861,1735749047488,-503.48872731,0.00019178,2]
[347383862,1735749047497,-500.0,0.00019178,2]
[347383863,1735749047507,-860.9,0.00019178,2]
[347383864,1735749047516,-6990.21,0.00019178,2]
[347383865,1735749047526,-500.0,0.00019178,2]
[347383866,1735749047535,-500.0,0.00019178,2]
[347383867,1735749047544,-4218.9,0.00019178,2]
[347383868,1735749047554,-500.0,0.00019178,2]
[347383869,1735749047564,-1091.2,0.00019178,2]
[347383870,1735749047573,-616.21,0.00019178,2]
[347383871,1735749047583,-500.0,0.00019178,2]
[347383872,1735749047592,-500.0,0.00019178,2]
[347383873,1735749047602,-500.0,0.00019178,2]
[347383874,1735749047612,-4079.74,0.00019178,2]
[347383875,1735749047624,-500.0,0.00019178,2]
[347383876,1735749047633,-502.08589558,0.00019178,2]
[347383877,1735749047642,-188.91919542,0.00019178,2]
[347383946,1735749091445,160.0,0.00023843,120]
[347383947,1735749150943,160.0,0.00023255,120]
[347383948,1735749258972,1000.0,0.00025,120]
[347383952,1735749303171,417.66831914,0.00010973,2]
[347383953,1735749556865,1000.0,0.00025,120]
[347383954,1735749613732,1488.08057258,0.00015022,14]
[347383961,1735750054407,4046.5178858,0.00022992,120]
[347383963,1735750138954,-160.941588,0.00013833,2]
[347383964,1735750138979,-309.50259223,0.00013873,2]
[347383965,1735750139007,-160.941588,0.00013973,2]
[347383966,1735750139032,-309.50259218,0.00014447,2]
[347383967,1735750139056,-88.04875419,0.00015022,2]
[347383971,1735750232151,-300.0,0.00016677,2]
[347383972,1735750232161,-300.0,0.00016845,2]
[347383973,1735750232171,-18891.9488828,0.00016846,2]
[347383974,1735750232206,-6008.0511172,0.00016846,2]
[347383976,1735750232216,-567.44,0.0001764,2]
[347383977,1735750232225,-187.76270674,0.0001764,2]
[347383979,1735750232235,-19757.04817361,0.00017797,2]
[347384034,1735750238231,-11712.27215217,0.00017797,2]
[347384036,1735750238241,-294.5252103,0.00017892,2]
[347384038,1735750238250,-7606.81229814,0.000179,2]
[347384040,1735750238260,-947.28373562,0.000179,2]
[347384044,1735750238286,-12162.36712738,0.000179,2]
[347384046,1735750238294,-152.0,0.00017961,2]
[347384048,1735750238304,-500.0,0.00017973,2]
[347384050,1735750238313,-500.0,0.00017973,2]
[347384052,1735750238323,-500.0,0.00017973,2]
[347384054,1735750238333,-160.0,0.00017999,2]
[347384056,1735750238343,-500.0,0.00017999,2]
[347384058,1735750238352,-8792.32940149,0.00018,2]
[347384060,1735750238361,-106612.00023517,0.00018,2]
[347384062,1735750238370,-155646.14389114,0.00018,4]
[347384085,1735750240189,-297801.32663841,0.00018,4]
[347384086,1735750240201,-3288.00000001,0.00018,4]
[347384097,1735750243403,-3205.33886407,0.0001782,2]
[347384104,1735750246131,-760.50144388,0.0001782,2]
[347384105,1735750246141,-783630.50826517,0.00018,4]
[347384106,1735750246153,-802.30350445,0.00018,4]
[347384107,1735750246187,-2575.34233914,0.00018,4]
[347384108,1735750246246,-6294.32954213,0.00018,4]
[347384139,1735750928926,2600.0,0.00025,120]
[347384140,1735750996409,4162.05679952,0.00015022,14]
[347384141,1735751033970,919.92037671,0.00015022,14]
[347384148,1735751201167,-160.941588,0.00013973,2]
[347384149,1735751201188,-88.87898525,0.00016392,2]
[347384152,1735751350119,-1038.64796168,0.00016493,2]
[347384153,1735751350289,-733.00627055,0.00016493,2]
[347384199,1735751432345,-300.0,0.00016492,2]
[347384201,1735751432354,-19263.17821784,0.00016493,2]
[347384207,1735751432404,-999.7066692,0.00016493,2]
[347384210,1735751432416,-2865.46088073,0.00016493,2]
[347384212,1735751432426,-212.238868,0.00016873,2]
[347384214,1735751432435,-705.1227752,0.00017082,2]
[347384216,1735751432444,-488.34071494,0.000176,2]
[347384218,1735751432453,-1431.30302269,0.00017652,2]
[347384220,1735751432465,-10559.50171889,0.00017652,2]
[347384222,1735751432474,-155.9606028,0.000177,2]
[347384224,1735751432483,-309.5116104,0.000177,2]
[347384226,1735751432493,-402.6526866,0.000177,2]
[347384228,1735751432502,-307.6506763,0.000177,2]
[347384230,1735751432511,-493.1691717,0.000177,2]
[347384232,1735751432520,-196.28302925,0.0001772,2]
[347384234,1735751432529,-500.0,0.00017796,2]
[347384236,1735751432539,-349.4654952,0.000178,2]
[347384238,1735751432548,-6077.54090816,0.00017899,2]
[347384240,1735751432557,-178.91167338,0.000179,2]
[347384242,1735751432567,-156.2590886,0.00017918,2]
[347384244,1735751432576,-152.0,0.00017942,2]
[347384246,1735751432585,-4042.82575278,0.00017998,2]
[347384248,1735751432595,-453.952,0.00017999,2]
[347384250,1735751432604,-219.3491944,0.00017999,2]
[347384252,1735751432613,-500.0,0.00017999,2]
[347384254,1735751432622,-500.0,0.00017999,2]
[347384256,1735751432631,-500.0,0.00017999,2]
[347384258,1735751432640,-477.76746745,0.00017999,2]
[347384260,1735751432649,-592.34231642,0.00017999,2]
[347384262,1735751432658,-500.0,0.00017999,2]
[347384264,1735751432667,-423.11196788,0.00017999,2]
[347384266,1735751432677,-512.07922415,0.00017999,2]
[347384268,1735751432686,-29688.74154086,0.00018,4]
[347384291,1735751438220,-140973.00000003,0.00018,4]
[347384292,1735751438278,-44203.39933282,0.00018,4]
[347384317,1735751443314,-2768.86682149,0.00018,4]
[347384318,1735751444582,10000.0,0.00014522,30]
[347384326,1735751446416,-14796.95932061,0.00018,4]
[347384328,1735751446428,-7418.94676918,0.00018,4]
[347384329,1735751446439,-3337.70655288,0.00018,4]
[347384346,1735751591276,10000.0,0.00025,120]
[347384347,1735751638592,4629.35292156,0.00015022,14]
[347384348,1735751709595,5688.998,0.00022957,60]
[347384349,1735751722037,4566.786,0.00022957,60]
[347384350,1735751735465,6655.789,0.00022957,60]
[347384351,1735751745442,3566.6678,0.00022957,60]
[347384352,1735751778526,4759.17338957,0.00022957,60]
[347384354,1735751790332,2207.65576473,0.00022957,60]
[347384691,1735752498262,416.32860369,0.000125,2]
[347384746,1735752632685,-160.941588,0.00013973,2]
[347384748,1735752632694,-176.84710488,0.00016874,2]
[347384750,1735752632704,-176.84710488,0.00016874,2]
[347384752,1735752632714,-176.84710488,0.00016874,2]
[347384754,1735752632725,-176.84710488,0.00016875,2]
[347384756,1735752632735,-176.84710488,0.00016875,2]
[347384758,1735752632744,-176.84710488,0.00016875,2]
[347384760,1735752632754,-300.0,0.00016974,2]
[347384762,1735752632763,-24900.0,0.00016975,2]
[347384763,1735752632772,-153.0,0.00017552,2]
[347384764,1735752632782,-153.0,0.000176,2]
[347384766,1735752632791,-153.0,0.00017652,2]
[347384768,1735752632801,-11136.0945766,0.00017796,2]
[347384770,1735752632811,-427.29812559,0.000178,2]
[347384771,1735752632822,-327.05827532,0.000179,2]
[347384773,1735752632834,-423.73092737,0.00017973,2]
[347384775,1735752632845,-500.0,0.00017999,2]
[347384777,1735752632857,-591.21320165,0.00017999,2]
[347384778,1735752632869,-153.54443608,0.00017999,2]
[347384779,1735752632879,-358.45545691,0.00017999,2]
[347384780,1735752632889,-500.0,0.00017999,2]
[347384782,1735752632898,-178.38708228,0.00017999,2]
[347384784,1735752632908,-4396.16470074,0.00018,2]
[347384785,1735752632917,-53306.00011759,0.00018,2]
[347384786,1735752632927,-46561.27888263,0.00018,4]
[347384787,1735752632939,-774.36854228,0.00018,4]
[347384802,1735752638377,-1145.37597596,0.00018,4]
[347384803,1735752638388,-14371.57218975,0.00018,4]
[347384804,1735752638400,-1535.08070678,0.00018,4]
[347384805,1735752638443,-270125.26454371,0.00018,4]
[347384806,1735752638455,-1000.0,0.00018,4]
[347384807,1735752638510,-7547.18517786,0.00018,4]
[347384808,1735752638522,-1979.77276785,0.00018,4]
[347384809,1735752638534,-3941.14434519,0.00018,4]
[347384810,1735752638545,-928.3289022,0.00018,4]
[347384830,1735752641385,-678.38708228,0.00018,4]
[347384911,1735752987325,200.0,0.00025,120]
[347384913,1735753070100,-68.89451083,0.00026,120]
[347384914,1735753070125,-250.0,0.00027,120]
[347384915,1735753070146,-195.59648917,0.000271,120]
[347384916,1735753070497,-165.59466083,0.000271,120]
[347384917,1735753070525,-348.86733917,0.00027397,120]
[347384918,1735753071029,-442.99965678,0.00027397,120]
[347384919,1735753071805,-1002.96342405,0.00027397,120]
[347384920,1735753071827,-514.491,0.0002779,120]
[347384921,1735753071851,-1000.0,0.00028,120]
[347384922,1735753071874,-361.19115,0.000282,120]
[347384923,1735753071896,-514.462,0.0002899,120]
[347384924,1735753071917,-153.77574789,0.00028992,120]
[347384925,1735753071939,-165.26677104,0.00028992,120]
[347384926,1735753071962,-2301.68453024,0.00028992,120]
[347384956,1735753643019,500.0,0.00015022,14]
[347384958,1735753651580,356.15104366,0.00015022,14]
[347384959,1735753707646,-160.941588,0.00013973,2]
[347384960,1735753707672,-500.0,0.00016974,2]
[347384961,1735753707697,-300.0,0.00017044,2]
[347384962,1735753707723,-141.41028219,0.00017045,2]
[347384963,1735753707756,-1102.35187019,0.00017045,2]
[347384964,1735753707796,-326.61569653,0.00017045,2]
[347384965,1735753711167,361.19115,0.0002779,120]
[347384966,1735753732644,-774.36637781,0.00016875,2]
[347384967,1735753732670,-347.637226,0.00017045,2]
[347384968,1735753732728,-256.3428753,0.00017045,2]
[347385005,1735753832794,-774.36637781,0.00016706,2]
[347385006,1735753832804,-300.0,0.00017044,2]
[347385008,1735753832814,-22725.64204979,0.00017045,2]
[347385010,1735753832823,-472.61,0.000171,2]
[347385012,1735753832833,-11136.0945767,0.00017588,2]
[347385043,1735753832980,-160.0,0.00017605,3]
[347385046,1735753832990,-373.8858599,0.00017696,2]
[347385048,1735753833000,-500.0,0.00017796,4]
[347385050,1735753833009,-153.5878957,0.000178,2]
[347385052,1735753833019,-428.8825702,0.000178,2]
[347385054,1735753833028,-306.8026703,0.000178,2]
[347385056,1735753833038,-214.4412851,0.000178,2]
[347385058,1735753833047,-538.3343577,0.0001782,2]
[347385060,1735753833056,-159.8236228,0.00017999,2]
[347385061,1735753833066,-16487.26636519,0.00018,4]